fUSD/lending_fUSD_20251029
["ID","MTS","AMOUNT","RATE_DAILY","PERIOD"]
[392598612,1761724232682,-395.669998,0.00024753,2]
[392598613,1761724232697,-511.71246314,0.00024753,2]
[392598614,1761724232708,-263.220004,0.00024753,2]
[392598615,1761724232777,-6934.98066262,0.00024753,2]
[392598616,1761724232787,-250.0,0.00024754,2]
[392598617,1761724232796,-820.0,0.00024829,2]
[392598618,1761724232806,-573.0,0.00024829,2]
[392598619,1761724232815,-1962.124,0.00024829,2]
[392598621,1761724232825,-606.0,0.00024829,2]
[392598623,1761724232834,-984.622,0.00024829,2]
[392598625,1761724232843,-170.39,0.00024961,2]
[392598627,1761724232852,-150.0,0.00025036,2]
[392598629,1761724232862,-213.64,0.00025243,2]
[392598631,1761724232871,-239.05,0.00025257,2]
[392598633,1761724232880,-300.0,0.00025554,2]
[392598635,1761724232889,-287.61899177,0.00025632,2]
[392598637,1761724232899,-300.0,0.00025691,2]
[392598638,1761724232908,-319.67539513,0.00025699,2]
[392598640,1761724232917,-891.7077717,0.00025699,2]
[392598642,1761724232926,-199.08,0.00025699,2]
[392598644,1761724232935,-159.28820458,0.00025699,2]
[392598646,1761724232945,-500.0,0.00025699,2]
[392598648,1761724232954,-162555.0869,0.000257,2]
[392598651,1761724232964,-398.0278,0.000257,2]
[392598653,1761724232973,-411.28366294,0.000257,2]
[392598654,1761724232982,-39519.95359865,0.000257,2]
[392598656,1761724232991,-5065.02677052,0.000257,2]
[392598658,1761724233002,-29598.78662079,0.000257,2]
[392598660,1761724233012,-151.0,0.000257,7]
[392598662,1761724233021,-12601.54267182,0.00025721,2]
[392598689,1761724238504,-200.23099369,0.00025721,2]
[392598690,1761724238514,-500.0,0.00025753,2]
[392598691,1761724238523,-800.0,0.00025753,2]
[392598692,1761724238533,-500.0,0.00025753,2]
[392598693,1761724238543,-239.97039611,0.00025773,2]
[392598694,1761724238554,-260.02960389,0.00025773,2]
[392598695,1761724238564,-500.0,0.00025773,2]
[392598696,1761724238574,-360.22232145,0.00025773,2]
[392598697,1761724238621,-149.304056,0.00025773,2]
[392598698,1761724238631,-475.77759538,0.00025773,2]
[392598699,1761724238642,-35.98546952,0.00025773,2]
[392598700,1761724238652,-290.14760123,0.00025773,2]
[392598701,1761724238664,-209.85239877,0.00025773,2]
[392598702,1761724238674,-429.61878183,0.00025773,2]
[392598703,1761724238683,-500.0,0.00025773,2]
[392598704,1761724238693,-500.0,0.00025773,2]
[392598705,1761724238703,-158.508462,0.0002578,7]
[392598706,1761724238712,-150.0,0.00025784,2]
[392598707,1761724238722,-500.0,0.00025784,2]
[392598708,1761724238732,-202.40640861,0.00025784,2]
[392598709,1761724238741,-150.0,0.00025784,2]
[392598710,1761724238751,-150.0,0.00025784,2]
[392598711,1761724238761,-150.0,0.00025784,2]
[392598712,1761724238771,-500.0,0.00025784,2]
[392598713,1761724238781,-150.0,0.00025784,2]
[392598714,1761724238791,-152.62543912,0.00025784,2]
[392598715,1761724238802,-150.0,0.00025784,2]
[392598716,1761724238812,-500.0,0.00025784,2]
[392598717,1761724238822,-500.0,0.00025784,2]
[392598718,1761724238831,-500.0,0.00025784,2]
[392598719,1761724238842,-295.33139851,0.00025784,2]
[392598720,1761724238851,-150.0,0.00025784,2]
[392598721,1761724238861,-150.0,0.00025784,2]
[392598722,1761724238871,-500.0,0.00025784,2]
[392598723,1761724238880,-150.0,0.00025784,2]
[392598724,1761724238890,-150.63958813,0.00025784,2]
[392598725,1761724238900,-150.0,0.00025784,2]
[392598726,1761724238910,-157.9835559,0.00025784,2]
[392598727,1761724238919,-150.0,0.00025784,2]
[392598728,1761724238929,-500.0,0.00025784,2]
[392598729,1761724238938,-150.0,0.00025784,2]
[392598730,1761724238948,-150.0,0.00025784,2]
[392598731,1761724238957,-150.0,0.00025784,2]
[392598732,1761724238966,-500.0,0.00025784,2]
[392598733,1761724238975,-150.0,0.00025784,2]
[392598734,1761724238985,-150.0,0.00025784,2]
[392598735,1761724238995,-150.0,0.00025784,2]
[392598736,1761724239005,-150.0,0.00025784,2]
[392598737,1761724239016,-150.0,0.00025784,2]
[392598738,1761724239025,-150.0,0.00025784,2]
[392598739,1761724239036,-150.0,0.00025784,2]
[392598740,1761724239045,-151.0,0.00025785,2]
[392598741,1761724239055,-151.0,0.00025785,2]
[392598742,1761724239064,-151.0,0.00025785,2]
[392598743,1761724239074,-151.0,0.00025785,2]
[392598744,1761724239084,-119.1462402,0.00025785,2]
[392598745,1761724239107,-31.8537598,0.00025785,2]
[392598746,1761724239118,-151.0,0.00025785,2]
[392598748,1761724239128,-151.0,0.00025785,2]
[392598750,1761724239137,-151.0,0.00025785,2]
[392598752,1761724239147,-151.0,0.00025785,2]
[392598754,1761724239157,-151.0,0.00025785,2]
[392598755,1761724239170,-151.0,0.00025785,2]
[392598757,1761724239179,-151.0,0.00025785,2]
[392598759,1761724239189,-500.0,0.00025785,2]
[392598761,1761724239199,-0.4886239,0.00025785,2]
[392598764,1761724239210,-150.5113761,0.00025785,2]
[392598766,1761724239220,-500.0,0.00025785,2]
[392598768,1761724239229,-151.0,0.00025785,2]
[392598770,1761724239239,-500.0,0.00025785,2]
[392598772,1761724239249,-15.63393027,0.00025785,2]
[392598774,1761724239261,-135.36606973,0.00025785,2]
[392598776,1761724239271,-500.0,0.00025785,2]
[392598778,1761724239280,-151.0,0.00025785,2]
[392598781,1761724239290,-151.0,0.00025785,2]
[392598783,1761724239300,-500.0,0.00025785,2]
[392598785,1761724239309,-260.62972883,0.00025785,2]
[392598787,1761724239322,-239.37027117,0.00025785,2]
[392598789,1761724239331,-151.0,0.00025785,2]
[392598790,1761724239340,-58.03440552,0.00025785,2]
[392598791,1761724239352,-441.96559448,0.00025785,2]
[392598792,1761724239361,-151.0,0.00025785,2]
[392598793,1761724239371,-458.62972883,0.00025785,2]
[392598799,1761724240582,-41.37027117,0.00025785,2]
[392598800,1761724240592,-151.0,0.00025785,2]
[392598801,1761724240602,-57.79287918,0.00025785,2]
[392598802,1761724240815,-93.20712082,0.00025785,2]
[392598803,1761724240825,-500.0,0.00025785,2]
[392598804,1761724240838,-151.0,0.00025785,2]
[392598805,1761724240847,-66.20450632,0.00025785,2]
[392598806,1761724240860,-433.79549368,0.00025785,2]
[392598807,1761724240870,-151.0,0.00025785,2]
[392598808,1761724240879,-151.0,0.00025785,2]
[392598809,1761724240889,-151.0,0.00025785,2]
[392598810,1761724240899,-151.0,0.00025785,2]
[392598811,1761724240908,-98.33950632,0.00025785,2]
[392598816,1761724243523,-52.66049368,0.00025785,2]
[392598817,1761724243534,-151.0,0.00025785,2]
[392598818,1761724243544,-200.0,0.00025785,2]
[392598819,1761724243553,-151.0,0.00025785,2]
[392598820,1761724243563,-151.0,0.00025785,2]
[392598821,1761724243572,-151.0,0.00025785,2]
[392598822,1761724243582,-500.0,0.00025789,2]
[392598823,1761724243591,-500.0,0.00025789,2]
[392598824,1761724243601,-500.0,0.00025789,2]
[392598825,1761724243610,-13527.41922632,0.0002579,2]
[392598826,1761724243622,-1833.11551243,0.0002579,2]
[392598827,1761724243637,-113306.24665525,0.0002579,2]
[392598828,1761724243647,-500.0,0.00025799,2]
[392598829,1761724243657,-194.61652775,0.00025799,2]
[392598830,1761724243666,-298.574218,0.00025799,2]
[392598831,1761724243676,-500.0,0.00025799,2]
[392598832,1761724243685,-500.0,0.00025799,2]
[392598833,1761724243695,-31371.56972637,0.000258,2]
[392598850,1761724246430,-492.36695992,0.000258,2]
[392598851,1761724246682,-258.93785876,0.000258,2]
[392598853,1761724330756,60000.0,0.00031507,120]
[392598857,1761724443479,50000.0,0.00031507,120]
[392598858,1761724507517,171.64,0.00013699,2]
[392598921,1761725431973,-150.0,0.00020187,2]
[392598922,1761725431983,-171.64,0.00020187,2]
[392598923,1761725431993,-209.138,0.00021649,2]
[392598924,1761725432002,-160.0,0.00023748,2]
[392598925,1761725432012,-1000.0,0.000241,2]
[392598926,1761725432021,-150.0,0.00024288,2]
[392598927,1761725432031,-150.0,0.00024288,2]
[392598928,1761725432040,-150.0,0.00024288,2]
[392598929,1761725432050,-216.25,0.00024658,2]
[392598930,1761725432059,-300.0,0.00024723,2]
[392598931,1761725432069,-8042.2910788,0.00024724,2]
[392598932,1761725432078,-505.83486562,0.00024724,2]
[392598933,1761725432088,-308.23,0.00024791,2]
[392598934,1761725432097,-1000.0,0.0002484,2]
[392598935,1761725432106,-1907.08,0.00024925,2]
[392598936,1761725432116,-152.0,0.00025467,3]
[392598937,1761725432127,-200.0,0.00025533,2]
[392598939,1761725432136,-166.66,0.00025684,2]
[392598941,1761725432146,-768.63516873,0.000257,2]
[392598943,1761725432155,-1337.69,0.00025748,2]
[392598945,1761725432165,-761.99,0.00025748,2]
[392598947,1761725432175,-500.0,0.00025753,2]
[392598949,1761725432184,-500.0,0.00025753,2]
[392598951,1761725432194,-800.0,0.00025753,2]
[392598953,1761725432203,-203.06809126,0.00025784,2]
[392598954,1761725432212,-200.0,0.00025785,2]
[392598956,1761725432222,-151.0,0.00025785,2]
[392598958,1761725432232,-151.0,0.00025785,2]
[392598960,1761725432241,-500.0,0.00025785,2]
[392598961,1761725432251,-151.0,0.00025785,2]
[392598962,1761725432260,-500.0,0.00025785,2]
[392598963,1761725432269,-151.0,0.00025785,2]
[392598964,1761725432278,-151.0,0.00025785,2]
[392598965,1761725432287,-151.0,0.00025785,2]
[392598966,1761725432296,-151.0,0.00025785,2]
[392598967,1761725432306,-151.0,0.00025785,2]
[392598968,1761725432315,-151.0,0.00025785,2]
[392598970,1761725432325,-500.0,0.00025785,2]
[392598972,1761725432335,-500.0,0.00025785,2]
[392598973,1761725432344,-500.0,0.00025785,2]
[392598974,1761725432353,-500.0,0.00025785,2]
[392598975,1761725432362,-500.0,0.00025785,2]
[392598976,1761725432371,-500.0,0.00025785,2]
[392598977,1761725432380,-500.0,0.00025785,2]
[392598978,1761725432390,-500.0,0.00025785,2]
[392598979,1761725432399,-500.0,0.00025785,2]
[392598980,1761725432408,-521.39079377,0.00025785,2]
[392598981,1761725432418,-200.0,0.00025785,2]
[392598982,1761725432429,-967.0494991,0.00025792,2]
[392598983,1761725432439,-3201.1397187,0.00025792,2]
[392598984,1761725432450,-157.34179312,0.00025797,7]
[392598985,1761725432459,-172.20661461,0.00025799,2]
[392598989,1761725437545,-450.0,0.00025662,2]
[392598991,1761725437555,-7.34810476,0.00025799,2]
[392598992,1761725437564,-164.04849723,0.00025799,2]
[392598994,1761725437573,-344.82689258,0.00025799,2]
[392598996,1761725437583,-318.05000016,0.00025799,2]
[392598998,1761725437591,-500.0,0.00025799,2]
[392598999,1761725437601,-6569.51197866,0.000258,2]
[392599000,1761725437618,-1998.90401612,0.000258,2]
[392599001,1761725437629,-3704.63791109,0.000258,2]
[392599003,1761725437644,-5234.05456,0.000258,2]
[392599005,1761725437655,-5731.17545574,0.000258,2]
[392599007,1761725437666,-581.52582,0.000258,2]
[392599038,1761725439766,-1463.43198053,0.000258,2]
[392599039,1761725439926,-886.59563417,0.000258,2]
[392599040,1761725439938,-11510.39302548,0.000258,2]
[392599041,1761725439975,-5360.89401854,0.000258,2]
[392599042,1761725440130,-555.72,0.000258,2]
[392599106,1761725485863,448.0,0.000315,120]
[392599111,1761726116571,152.56,0.00012314,2]
[392599112,1761726116763,152.56,0.00013084,2]
[392599113,1761726116964,152.56,0.00013853,2]
[392599114,1761726117495,152.56,0.00014623,2]
[392599115,1761726117727,152.56,0.00015392,2]
[392599116,1761726117955,152.56,0.00016162,2]
[392599117,1761726118132,152.56,0.00016932,2]
[392599118,1761726308130,98760.44,0.00015,2]
[392599119,1761726308156,100000.0,0.00015,2]
[392599120,1761726308183,99824.49248459,0.00015,2]
[392599137,1761726416128,5000.00845572,0.000162,5]
[392599140,1761726504682,2152.85067545,0.0002,3]
[392599205,1761726598861,515.35823784,0.000315,120]
[392599206,1761726619606,-711.29295566,0.000149,2]
[392599207,1761726619629,-380.74153744,0.00014973,2]
[392599208,1761726621202,-119.25846256,0.00014973,2]
[392599209,1761726621225,-292.29684312,0.00014998,2]
[392599239,1761726632224,-7.70315688,0.00014998,2]
[392599241,1761726632235,-241.37882481,0.00014999,2]
[392599243,1761726632244,-377.95217242,0.00014999,2]
[392599245,1761726632255,-122.04782758,0.00014999,2]
[392599247,1761726632264,-474.66254457,0.00014999,2]
[392599249,1761726632274,-500.0,0.00014999,2]
[392599251,1761726632283,-212.20075361,0.00014999,2]
[392599253,1761726632293,-500.0,0.00014999,2]
[392599255,1761726632302,-500.0,0.00014999,2]
[392599257,1761726632311,-500.0,0.00014999,2]
[392599259,1761726632320,-500.0,0.00014999,2]
[392599261,1761726632329,-500.0,0.00014999,2]
[392599263,1761726632339,-500.0,0.00014999,2]
[392599265,1761726632348,-59293.41842055,0.00015,2]
[392599268,1761726632363,-1044.15393787,0.00015,2]
[392599271,1761726632382,-2647.57839088,0.00015,2]
[392599273,1761726632394,-326.03172292,0.00015,2]
[392599275,1761726632405,-624.24683828,0.00015,2]
[392599278,1761726632420,-874.87340979,0.00015,2]
[392599280,1761726632431,-994.12251902,0.00015,2]
[392599284,1761726632457,-232652.70330685,0.00015,2]
[392599519,1761726637747,-664.98932389,0.00015,2]
[392599520,1761726637758,-1562.83914157,0.00015,2]
[392599521,1761726637769,-2074.32447439,0.00015,2]
[392599522,1761726637780,-269.79734709,0.00015,2]
[392599523,1761726637790,-3393.9892585,0.00015,2]
[392599524,1761726637801,-5709.89935919,0.00015,2]
[392599525,1761726637812,-2147.65652639,0.00015,2]
[392599526,1761726637823,-13819.38434905,0.00015,2]
[392599588,1761726640025,-1.6e-07,0.00015,2]
[392599589,1761726640055,-1765.64626245,0.00015,2]
[392599601,1761726642995,-3856.5157987,0.00015,2]
[392599614,1761726645955,-908.62299875,0.00015,2]
[392599621,1761726765726,-246.72433397,0.0001499,2]
[392599622,1761726898908,91983.14086883,0.000195,3]
[392599623,1761726898934,6933.22294447,0.000195,3]
[392599624,1761727108672,154.47,0.00013699,2]
[392599637,1761727660750,500.0,0.000315,120]
[392599656,1761727832486,-954.0,0.00014998,2]
[392599657,1761727832504,-300.0,0.00014998,2]
[392599658,1761727832516,-4685.83582916,0.00014999,2]
[392599659,1761727832528,-160.87,0.00014999,2]
[392599660,1761727832540,-150.0,0.00014999,2]
[392599661,1761727832553,-18065.03443993,0.00015,2]
[392599662,1761727832801,-8760.87738386,0.00015,2]
[392599663,1761727832812,-1688.31105756,0.00015,2]
[392599664,1761727832825,-6839.553985,0.00015,2]
[392599665,1761727832838,-3801.506002,0.00015,2]
[392599666,1761727832851,-429.430001,0.00015,2]
[392599667,1761727832863,-9264.65000019,0.00015,2]
[392600182,1761727837949,-1040.85406407,0.00015,2]
[392600184,1761727837961,-3444.860025,0.00015,2]
[392600399,1761727840078,-2268.266,0.00015,2]
[392600428,1761727840414,-75444.41862425,0.00015,2]
[392600880,1761727845958,-326.92793437,0.00015,2]
[392601685,1761728025801,862.52271699,0.00014542,2]
[392601686,1761728113610,-300.0,0.00014999,2]
[392601687,1761728113637,-6287.27174542,0.00015,2]
[392601688,1761728113663,-8526.3359705,0.00015,2]
[392601689,1761728144354,151.0,0.00015,2]
[392601690,1761728211903,28812.5422057,0.00015,2]
[392601691,1761728227943,151.0,0.00019862,7]
[392601693,1761728245428,151.0,0.00019862,7]
[392601694,1761728322081,288.07281053,0.00026988,120]
[392601695,1761728343362,175.05785,0.0001498,2]
[392601696,1761728348936,-862.52271699,0.00015181,2]
[392601697,1761728348977,-175.05786,0.0001523,2]
[392601698,1761728349008,-175.05785,0.0001548,2]
[392601699,1761728349038,-500.0,0.0001565,2]
[392601700,1761728349068,-175.05786,0.0001573,2]
[392601701,1761728349098,-49.54957602,0.0001598,2]
[392601702,1761728349110,-125.50827398,0.0001598,2]
[392601703,1761728349121,-175.05786,0.0001623,2]
[392601704,1761728349131,-561.95658301,0.00016234,2]
[392601705,1761728349158,-175.05786,0.00016234,2]
[392601706,1761728349173,-126.46555699,0.00016234,2]
[392601707,1761728349182,-48.59229301,0.00016234,2]
[392601708,1761728349194,-151.40770699,0.00016234,2]
[392601709,1761728349204,-151.0,0.00016234,2]
[392601710,1761728349214,-151.0,0.00016234,2]
[392601711,1761728349224,-46.59229301,0.00016234,2]
[392601712,1761728349239,-104.40770699,0.00016234,2]
[392601713,1761728349248,-70.65015301,0.00016234,2]
[392601714,1761728349260,-80.34984699,0.00016234,2]
[392601715,1761728349269,-94.70800301,0.00016234,2]
[392601716,1761728374443,7494.01879274,0.000315,120]
[392601718,1761728564633,-151.0,0.00015014,2]
[392601719,1761728564660,-1000.0,0.00015016,2]
[392601720,1761728564688,-500.0,0.00015016,2]
[392601721,1761728564721,-468.02230596,0.00015016,2]
[392601722,1761728564750,-500.0,0.00015016,2]
[392601723,1761728564778,-500.0,0.00015016,2]
[392601724,1761728564810,-234.6448414,0.00015016,2]
[392601725,1761728564840,-228.97107281,0.00015016,2]
[392601726,1761728565083,-162.61707461,0.00015016,2]
[392601727,1761728565120,-315.45654005,0.00015016,2]
[392601728,1761728565392,-9941.33046733,0.00015017,2]
[392601730,1761728710756,-1200.0,0.00015016,2]
[392601731,1761728710802,-2600.0,0.00015017,2]
[392601734,1761728842388,-151.0,0.00015008,2]
[392601735,1761728842416,-210.19144222,0.00015008,2]
[392601736,1761728842445,-151.0,0.00015008,2]
[392601737,1761728842478,-151.0,0.00015008,2]
[392601738,1761728842506,-151.0,0.00015008,2]
[392601739,1761728842537,-152.302388,0.00015008,2]
[392601740,1761728842564,-151.0,0.00015008,2]
[392601741,1761728842593,-151.0,0.00015008,2]
[392601742,1761728842623,-151.0,0.00015008,2]
[392601743,1761728842651,-183.38443612,0.00015008,2]
[392601744,1761728842681,-500.0,0.00015008,2]
[392601745,1761728842712,-500.0,0.00015016,2]
[392601746,1761728842744,-292.27385327,0.00015016,2]
[392601747,1761728842775,-174.68138521,0.00015016,2]
[392601748,1761728843183,-10860.33299036,0.00015017,2]
[392601752,1761728864418,165.71,8.583e-05,2]
[392601770,1761729032194,-500.0,0.00015008,2]
[392601771,1761729032203,-151.0,0.00015008,2]
[392601772,1761729032213,-151.0,0.00015008,2]
[392601773,1761729032222,-151.0,0.00015014,2]
[392601774,1761729032232,-824.0,0.00015016,2]
[392601775,1761729032246,-22096.74074661,0.00015017,2]
[392601776,1761729032255,-1407.1086265,0.00015017,2]
[392601777,1761729032265,-61009.076058,0.00015017,2]
[392601778,1761729032275,-1154.6032305,0.00015017,2]
[392601779,1761729032284,-220.81957803,0.0001502,2]
[392601780,1761729032295,-192.87534229,0.0001502,2]
[392601781,1761729032304,-155.72681854,0.0001502,2]
[392601782,1761729032314,-29206.8370032,0.00015021,2]
[392601783,1761729032323,-187.2737523,0.00015021,2]
[392601784,1761729032333,-151.0,0.00015021,2]
[392601785,1761729032342,-151.0,0.00015021,2]
[392601786,1761729032352,-227.728748,0.00015021,2]
[392601787,1761729032361,-428.280554,0.00015021,2]
[392601788,1761729032371,-428.280554,0.00015021,2]
[392601789,1761729032380,-428.280554,0.00015021,2]
[392601790,1761729032390,-428.280554,0.00015021,2]
[392601791,1761729032399,-380.8056826,0.00015075,2]
[392601792,1761729032409,-164.30240231,0.00015198,2]
[392601793,1761729032418,-193.96526,0.0001607,2]
[392601794,1761729032429,-1016.05533837,0.00016234,2]
[392601795,1761729032443,-151.0,0.00016234,2]
[392601796,1761729032453,-500.0,0.00016243,2]
[392601797,1761729032463,-584.86,0.00016243,2]
[392601798,1761729032473,-862.52271699,0.00016603,2]
[392601799,1761729032483,-1407.1086265,0.00016926,2]
[392601800,1761729032492,-151.0,0.00016939,2]
[392601801,1761729032502,-428.280554,0.00016939,2]
[392601802,1761729032511,-428.280554,0.00016939,2]
[392601803,1761729032521,-428.280554,0.00016939,2]
[392601805,1761729032531,-428.280554,0.00016939,2]
[392601807,1761729032540,-45498.4042043,0.00016939,2]
[392601809,1761729032550,-1794.54793066,0.00016999,2]
[392601811,1761729032559,-193.96526,0.0001707,2]
[392601813,1761729032568,-6516.9262179,0.000171,2]
[392601815,1761729032577,-805.98,0.00017126,2]
[392601817,1761729032587,-1902.4827105,0.00017488,2]
[392601819,1761729032596,-1454.1227906,0.00017563,2]
[392601821,1761729032605,-6428.9471566,0.00017574,2]
[392601823,1761729032614,-512.79970759,0.00017633,2]
[392601825,1761729032624,-500.0,0.00017633,2]
[392601827,1761729032633,-500.0,0.00017633,2]
[392601829,1761729032643,-500.91373795,0.00017633,2]
[392601831,1761729032652,-500.0,0.00017633,2]
[392601833,1761729032661,-152.56,0.00017701,2]
[392601835,1761729032670,-151.0,0.00017797,2]
[392601837,1761729032679,-428.280554,0.00017797,2]
[392601839,1761729032688,-428.280554,0.00017797,2]
[392601841,1761729032698,-428.280554,0.00017797,2]
[392601843,1761729032708,-428.280554,0.00017797,2]
[392601845,1761729032717,-2068.38286558,0.00017797,2]
[392601850,1761729032756,-1296.60699386,0.00017797,2]
[392601854,1761729032788,-10247.97505186,0.00017797,2]
[392601856,1761729032798,-406.95163581,0.00017975,2]
[392601858,1761729032808,-2864.00542275,0.00018,2]
[392601860,1761729032818,-424.5012718,0.00018043,2]
[392601862,1761729032827,-193.96526,0.0001807,2]
[392601864,1761729032837,-1794.54793058,0.00018143,2]
[392601866,1761729032846,-1434.4920086,0.00018148,2]
[392601868,1761729032855,-500.0,0.00018181,2]
[392601870,1761729032865,-290.14760123,0.00018181,2]
[392601872,1761729032875,-166.66,0.00018239,2]
[392601874,1761729032885,-415.72161295,0.00018417,2]
[392601877,1761729032899,-2621.74142775,0.00018417,2]
[392601879,1761729032909,-152.56,0.00018471,2]
[392601881,1761729032919,-500.0,0.00018575,2]
[392601883,1761729032928,-29.86006742,0.0001882,2]
[392601885,1761729032942,-120.13993258,0.0001882,2]
[392601887,1761729032952,-150.0,0.0001882,2]
[392601889,1761729032962,-150.0,0.0001882,2]
[392601891,1761729032971,-150.0,0.0001882,2]
[392601893,1761729032980,-157.48677987,0.0001882,2]
[392601895,1761729032990,-150.0,0.0001882,2]
[392601897,1761729033000,-150.0,0.0001882,2]
[392601900,1761729033010,-150.0,0.0001882,2]
[392601902,1761729033023,-500.0,0.0001882,2]
[392601904,1761729033032,-150.0,0.0001882,2]
[392601906,1761729033042,-500.0,0.0001882,2]
[392601908,1761729033051,-500.0,0.0001882,2]
[392601910,1761729033060,-150.0,0.0001882,2]
[392601912,1761729033070,-150.0,0.0001882,2]
[392601914,1761729033080,-500.0,0.0001882,2]
[392601916,1761729033089,-500.0,0.0001882,2]
[392601918,1761729033098,-150.0,0.0001882,2]
[392601920,1761729033107,-150.0,0.0001882,2]
[392601922,1761729033117,-150.0,0.0001882,2]
[392601924,1761729033126,-150.0,0.0001882,2]
[392601926,1761729033135,-500.0,0.0001882,2]
[392601928,1761729033143,-150.0,0.0001882,2]
[392601930,1761729033153,-0.90490337,0.0001882,2]
[392601968,1761729038134,-171.312221,0.00016939,2]
[392601969,1761729038143,-171.312221,0.00017797,2]
[392601970,1761729038153,-499.09509663,0.0001882,2]
[392601971,1761729038163,-150.0,0.0001882,2]
[392601972,1761729038172,-166.92127885,0.0001882,2]
[392601973,1761729038601,-333.07872115,0.0001882,2]
[392601975,1761729038610,-500.0,0.0001882,2]
[392601976,1761729038620,-1217.77,0.0001882,2]
[392601979,1761729038639,-28.78201272,0.0001882,2]
[392601981,1761729038652,-121.21798728,0.0001882,2]
[392601982,1761729038661,-150.0,0.0001882,2]
[392601983,1761729038673,-500.0,0.0001882,2]
[392601984,1761729038683,-500.0,0.0001882,2]
[392601985,1761729038693,-500.0,0.0001882,2]
[392601986,1761729038702,-99.21067948,0.0001882,2]
[392602005,1761729040596,-171.312221,0.00016939,2]
[392602006,1761729040605,-171.312221,0.00017797,2]
[392602007,1761729040615,-50.78932052,0.0001882,2]
[392602008,1761729040624,-106.58623748,0.0001882,2]
[392602023,1761729043277,-171.312221,0.00016939,2]
[392602024,1761729043286,-171.312221,0.00016939,2]
[392602025,1761729043296,-171.312221,0.00017797,2]
[392602026,1761729043305,-171.312221,0.00017797,2]
[392602027,1761729043314,-393.41376252,0.0001882,2]
[392602028,1761729043324,-500.0,0.0001882,2]
[392602029,1761729043333,-128.9027877,0.0001882,2]
[392602030,1761729043345,-22.0972123,0.0001882,2]
[392602031,1761729043355,-191.24,0.00018832,2]
[392602032,1761729043366,-350.9039502,0.00018836,2]
[392602033,1761729043962,-435.7588375,0.00018836,2]
[392602034,1761729044206,-620.4458388,0.00018836,2]
[392602035,1761729044217,-171.312221,0.00018861,2]
[392602036,1761729044227,-171.312221,0.00018861,2]
[392602038,1761729044236,-171.312221,0.00018861,2]
[392602039,1761729044245,-171.312221,0.00018861,2]
[392602040,1761729044258,-45498.4042043,0.00018861,2]
[392602041,1761729044267,-150.0,0.00018957,2]
[392602042,1761729044276,-150.0,0.00018957,2]
[392602043,1761729044286,-150.0,0.00018957,2]
[392602044,1761729044300,-150.0,0.00018957,2]
[392602045,1761729044311,-500.0,0.00018957,2]
[392602046,1761729044320,-150.0,0.00018957,2]
[392602047,1761729044330,-559.42119492,0.00018957,2]
[392602048,1761729044339,-500.0,0.00018957,2]
[392602049,1761729044349,-500.0,0.00018957,2]
[392602050,1761729044359,-532.14390734,0.00018957,2]
[392602051,1761729044369,-150.0,0.00018957,2]
[392602052,1761729044380,-500.0,0.00018957,2]
[392602053,1761729044389,-500.0,0.00018957,2]
[392602054,1761729044399,-500.0,0.00018957,2]
[392602055,1761729044411,-500.0,0.00018957,2]
[392602056,1761729044420,-221.32331399,0.00018957,2]
[392602057,1761729044430,-213.07266327,0.00018957,2]
[392602058,1761729044439,-500.0,0.00018957,2]
[392602059,1761729044449,-500.0,0.00018957,2]